fUSD/lending_fUSD_20241116
["ID","MTS","AMOUNT","RATE_DAILY","PERIOD"]
[342351621,1731766239699,-1154.32,9.999e-05,2]
[342351622,1731766239709,-1154.54,9.999e-05,2]
[342351623,1731766239719,-798.39,9.999e-05,2]
[342351624,1731766239728,-798.39,9.999e-05,2]
[342351625,1731766239738,-798.39,9.999e-05,2]
[342351626,1731766239748,-798.39,9.999e-05,2]
[342351627,1731766239757,-798.39,9.999e-05,2]
[342351629,1731766239766,-798.39,9.999e-05,2]
[342351630,1731766239776,-798.39,9.999e-05,2]
[342351632,1731766239786,-798.39,9.999e-05,2]
[342351634,1731766239795,-798.39,9.999e-05,2]
[342351636,1731766239804,-798.39,9.999e-05,2]
[342351638,1731766239813,-798.39,9.999e-05,2]
[342351640,1731766239822,-798.39,9.999e-05,2]
[342351641,1731766239831,-798.39,9.999e-05,2]
[342351642,1731766239840,-798.39,9.999e-05,2]
[342351643,1731766239849,-798.39,9.999e-05,2]
[342351644,1731766239859,-798.39,9.999e-05,2]
[342351645,1731766239869,-798.39,9.999e-05,2]
[342351646,1731766239879,-798.39,9.999e-05,2]
[342351647,1731766239891,-798.39,9.999e-05,2]
[342351648,1731766239902,-798.59795231,9.999e-05,2]
[342351649,1731766239911,-500.0,9.999e-05,2]
[342351650,1731766239920,-500.0,9.999e-05,2]
[342351651,1731766239930,-500.0,9.999e-05,2]
[342351652,1731766239942,-500.0,9.999e-05,2]
[342351653,1731766239952,-500.0,9.999e-05,2]
[342351654,1731766239963,-500.0,9.999e-05,2]
[342351655,1731766239973,-500.0,9.999e-05,2]
[342351656,1731766239982,-500.0,9.999e-05,2]
[342351657,1731766239992,-500.0,9.999e-05,2]
[342351658,1731766240002,-500.0,9.999e-05,2]
[342351659,1731766240011,-500.0,9.999e-05,2]
[342351660,1731766240021,-500.0,9.999e-05,2]
[342351661,1731766240030,-307.84,9.999e-05,2]
[342351662,1731766240039,-1057.42,9.999e-05,2]
[342351663,1731766240048,-1057.42,9.999e-05,2]
[342351664,1731766240058,-1057.42,9.999e-05,2]
[342351665,1731766240067,-1057.42,9.999e-05,2]
[342351666,1731766240077,-1057.42,9.999e-05,2]
[342351667,1731766240087,-1057.42,9.999e-05,2]
[342351668,1731766240096,-1057.42,9.999e-05,2]
[342351669,1731766240105,-1057.42,9.999e-05,2]
[342351670,1731766240115,-1057.42,9.999e-05,2]
[342351671,1731766240124,-1057.42,9.999e-05,2]
[342351672,1731766240134,-1057.42,9.999e-05,2]
[342351673,1731766240144,-1057.42,9.999e-05,2]
[342351674,1731766240155,-1057.42,9.999e-05,2]
[342351675,1731766240165,-1057.42,9.999e-05,2]
[342351676,1731766240175,-1057.42,9.999e-05,2]
[342351677,1731766240184,-1057.42,9.999e-05,2]
[342351678,1731766240194,-1057.42,9.999e-05,2]
[342351679,1731766240204,-1057.42,9.999e-05,2]
[342351680,1731766240213,-1057.42,9.999e-05,2]
[342351681,1731766240223,-1057.64,9.999e-05,2]
[342351682,1731766240233,-500.0,9.999e-05,2]
[342351683,1731766240242,-500.0,9.999e-05,2]
[342351684,1731766240252,-500.0,9.999e-05,2]
[342351685,1731766240262,-500.0,9.999e-05,2]
[342351686,1731766240271,-500.0,9.999e-05,2]
[342351687,1731766240281,-500.0,9.999e-05,2]
[342351688,1731766240291,-500.0,9.999e-05,2]
[342351689,1731766240301,-500.0,9.999e-05,2]
[342351690,1731766240311,-500.0,9.999e-05,2]
[342351691,1731766240321,-500.0,9.999e-05,2]
[342351692,1731766240331,-500.0,9.999e-05,2]
[342351693,1731766240340,-500.0,9.999e-05,2]
[342351694,1731766240350,-500.0,9.999e-05,2]
[342351695,1731766240359,-500.0,9.999e-05,2]
[342351696,1731766240370,-523.35,9.999e-05,2]
[342351697,1731766240379,-868.05,9.999e-05,2]
[342351698,1731766240388,-868.05,9.999e-05,2]
[342351699,1731766240400,-868.05,9.999e-05,2]
[342351700,1731766240409,-868.05,9.999e-05,2]
[342351701,1731766240418,-868.05,9.999e-05,2]
[342351702,1731766240428,-868.05,9.999e-05,2]
[342351703,1731766240438,-868.05,9.999e-05,2]
[342351704,1731766240448,-868.05,9.999e-05,2]
[342351705,1731766240457,-868.05,9.999e-05,2]
[342351706,1731766240466,-868.05,9.999e-05,2]
[342351707,1731766240476,-868.05,9.999e-05,2]
[342351708,1731766240485,-868.05,9.999e-05,2]
[342351709,1731766240495,-868.05,9.999e-05,2]
[342351710,1731766240505,-868.05,9.999e-05,2]
[342351711,1731766240514,-868.05,9.999e-05,2]
[342351712,1731766240523,-868.05,9.999e-05,2]
[342351713,1731766240532,-868.05,9.999e-05,2]
[342351714,1731766240542,-868.05,9.999e-05,2]
[342351715,1731766240552,-868.05,9.999e-05,2]
[342351716,1731766240561,-868.15,9.999e-05,2]
[342351717,1731766240571,-595.6,9.999e-05,2]
[342351718,1731766240580,-595.6,9.999e-05,2]
[342351719,1731766240590,-595.6,9.999e-05,2]
[342351720,1731766240599,-595.6,9.999e-05,2]
[342351721,1731766240609,-560.21917609,9.999e-05,2]
[342351722,1731766240855,-35.38082391,9.999e-05,2]
[342351723,1731766240865,-595.6,9.999e-05,2]
[342351724,1731766240875,-595.6,9.999e-05,2]
[342351725,1731766240886,-595.6,9.999e-05,2]
[342351726,1731766240897,-595.6,9.999e-05,2]
[342351727,1731766240919,-595.6,9.999e-05,2]
[342351728,1731766240930,-595.6,9.999e-05,2]
[342351729,1731766240940,-595.6,9.999e-05,2]
[342351730,1731766240949,-595.6,9.999e-05,2]
[342351731,1731766240958,-595.6,9.999e-05,2]
[342351732,1731766240969,-595.6,9.999e-05,2]
[342351733,1731766240979,-595.6,9.999e-05,2]
[342351734,1731766240989,-595.6,9.999e-05,2]
[342351735,1731766240998,-595.6,9.999e-05,2]
[342351736,1731766241007,-595.6,9.999e-05,2]
[342351737,1731766241017,-595.65,9.999e-05,2]
[342351738,1731766241026,-593.08,9.999e-05,2]
[342351739,1731766241035,-593.08,9.999e-05,2]
[342351740,1731766241045,-593.08,9.999e-05,2]
[342351741,1731766241054,-593.08,9.999e-05,2]
[342351742,1731766241064,-593.08,9.999e-05,2]
[342351743,1731766241073,-593.08,9.999e-05,2]
[342351744,1731766241082,-593.08,9.999e-05,2]
[342351745,1731766241091,-593.08,9.999e-05,2]
[342351746,1731766241100,-593.08,9.999e-05,2]
[342351747,1731766241109,-593.08,9.999e-05,2]
[342351748,1731766241118,-593.08,9.999e-05,2]
[342351749,1731766241128,-593.08,9.999e-05,2]
[342351750,1731766241137,-593.08,9.999e-05,2]
[342351751,1731766241146,-593.08,9.999e-05,2]
[342351752,1731766241159,-593.08,9.999e-05,2]
[342351753,1731766241169,-593.08,9.999e-05,2]
[342351754,1731766241179,-593.08,9.999e-05,2]
[342351755,1731766241189,-593.08,9.999e-05,2]
[342351756,1731766241198,-593.08,9.999e-05,2]
[342351757,1731766241208,-593.30659392,9.999e-05,2]
[342351758,1731766241218,-500.0,9.999e-05,2]
[342351759,1731766241232,-523.35,9.999e-05,2]
[342351760,1731766241241,-500.0,9.999e-05,2]
[342351761,1731766241250,-619.4008783,9.999e-05,2]
[342351762,1731766241259,-500.0,9.999e-05,2]
[342351763,1731766241269,-500.0,9.999e-05,2]
[342351764,1731766241285,-500.0,9.999e-05,2]
[342351765,1731766241295,-500.0,9.999e-05,2]
[342351766,1731766241304,-500.0,9.999e-05,2]
[342351767,1731766241313,-500.0,9.999e-05,2]
[342351768,1731766241323,-500.0,9.999e-05,2]
[342351769,1731766241333,-500.0,9.999e-05,2]
[342351770,1731766241342,-500.0,9.999e-05,2]
[342351771,1731766241353,-500.0,9.999e-05,2]
[342351772,1731766241362,-500.0,9.999e-05,2]
[342351773,1731766241371,-500.0,9.999e-05,2]
[342351774,1731766241382,-500.0,9.999e-05,2]
[342351775,1731766241391,-500.0,9.999e-05,2]
[342351776,1731766241402,-281.95,9.999e-05,2]
[342351777,1731766241411,-836.45,9.999e-05,2]
[342351778,1731766241421,-836.45,9.999e-05,2]
[342351779,1731766241430,-836.45,9.999e-05,2]
[342351780,1731766241439,-836.45,9.999e-05,2]
[342351781,1731766241450,-836.45,9.999e-05,2]
[342351782,1731766241460,-836.45,9.999e-05,2]
[342351783,1731766241470,-836.45,9.999e-05,2]
[342351784,1731766241479,-836.45,9.999e-05,2]
[342351785,1731766241488,-836.45,9.999e-05,2]
[342351786,1731766241497,-836.45,9.999e-05,2]
[342351787,1731766241506,-836.45,9.999e-05,2]
[342351788,1731766241516,-836.45,9.999e-05,2]
[342351789,1731766241525,-836.45,9.999e-05,2]
[342351790,1731766241535,-836.45,9.999e-05,2]
[342351791,1731766241544,-836.45,9.999e-05,2]
[342351792,1731766241553,-836.45,9.999e-05,2]
[342351793,1731766241563,-836.45,9.999e-05,2]
[342351794,1731766241572,-836.45,9.999e-05,2]
[342351795,1731766241582,-836.45,9.999e-05,2]
[342351796,1731766241591,-836.6,9.999e-05,2]
[342351797,1731766241600,-867.01,9.999e-05,2]
[342351798,1731766241609,-867.01,9.999e-05,2]
[342351799,1731766241619,-867.01,9.999e-05,2]
[342351800,1731766241628,-867.01,9.999e-05,2]
[342351801,1731766241637,-867.01,9.999e-05,2]
[342351802,1731766241646,-867.01,9.999e-05,2]
[342351803,1731766241658,-867.01,9.999e-05,2]
[342351804,1731766241667,-867.01,9.999e-05,2]
[342351805,1731766241676,-867.01,9.999e-05,2]
[342351806,1731766241686,-867.01,9.999e-05,2]
[342351807,1731766241696,-867.01,9.999e-05,2]
[342351808,1731766241705,-500.0,9.999e-05,2]
[342351809,1731766241715,-867.01,9.999e-05,2]
[342351810,1731766241724,-867.01,9.999e-05,2]
[342351811,1731766241734,-867.01,9.999e-05,2]
[342351812,1731766241743,-867.01,9.999e-05,2]
[342351813,1731766241752,-867.01,9.999e-05,2]
[342351814,1731766241762,-867.01,9.999e-05,2]
[342351815,1731766241772,-867.01,9.999e-05,2]
[342351816,1731766241781,-867.01,9.999e-05,2]
[342351817,1731766241790,-867.22,9.999e-05,2]
[342351818,1731766241800,-500.0,9.999e-05,2]
[342351819,1731766241809,-709.3,9.999e-05,2]
[342351820,1731766241819,-709.3,9.999e-05,2]
[342351821,1731766241828,-709.3,9.999e-05,2]
[342351822,1731766241837,-709.3,9.999e-05,2]
[342351823,1731766241846,-709.3,9.999e-05,2]
[342351824,1731766241855,-709.3,9.999e-05,2]
[342351825,1731766241864,-709.3,9.999e-05,2]
[342351826,1731766241874,-709.3,9.999e-05,2]
[342351827,1731766241883,-709.3,9.999e-05,2]
[342351828,1731766241895,-709.3,9.999e-05,2]
[342351829,1731766241906,-709.3,9.999e-05,2]
[342351830,1731766241915,-709.3,9.999e-05,2]
[342351831,1731766241927,-500.0,9.999e-05,2]
[342351832,1731766241937,-709.3,9.999e-05,2]
[342351833,1731766241946,-254.9,9.999e-05,2]
[342351834,1731766241957,-709.3,9.999e-05,2]
[342351835,1731766241966,-709.3,9.999e-05,2]
[342351836,1731766241976,-709.3,9.999e-05,2]
[342351837,1731766241985,-709.3,9.999e-05,2]
[342351838,1731766241994,-709.3,9.999e-05,2]
[342351839,1731766242003,-709.3,9.999e-05,2]
[342351840,1731766242012,-709.3,9.999e-05,2]
[342351841,1731766242022,-3003.89,9.999e-05,2]
[342351842,1731766242032,-3003.89,9.999e-05,2]
[342351843,1731766242042,-3003.89,9.999e-05,2]
[342351844,1731766242052,-3003.89,9.999e-05,2]
[342351845,1731766242062,-3003.89,9.999e-05,2]
[342351846,1731766242072,-3003.89,9.999e-05,2]
[342351847,1731766242082,-3003.89,9.999e-05,2]
[342351848,1731766242091,-3003.89,9.999e-05,2]
[342351849,1731766242102,-3003.89,9.999e-05,2]
[342351850,1731766242112,-3003.89,9.999e-05,2]
[342351851,1731766242122,-3003.89,9.999e-05,2]
[342351852,1731766242131,-3003.89,9.999e-05,2]
[342351853,1731766242140,-3003.89,9.999e-05,2]
[342351854,1731766242150,-3003.89,9.999e-05,2]
[342351855,1731766242161,-3003.89,9.999e-05,2]
[342351856,1731766242171,-3003.89,9.999e-05,2]
[342351857,1731766242180,-3003.89,9.999e-05,2]
[342351858,1731766242190,-3003.89,9.999e-05,2]
[342351859,1731766242200,-3003.89,9.999e-05,2]
[342351860,1731766242210,-3004.12488841,9.999e-05,2]
[342351861,1731766242219,-500.0,9.999e-05,2]
[342351862,1731766242229,-500.0,9.999e-05,2]
[342351863,1731766242238,-3018.59,9.999e-05,2]
[342351865,1731766242248,-3018.59,9.999e-05,2]
[342351867,1731766242258,-3018.59,9.999e-05,2]
[342351868,1731766242267,-3018.59,9.999e-05,2]
[342351869,1731766242277,-3018.59,9.999e-05,2]
[342351870,1731766242287,-3018.59,9.999e-05,2]
[342351871,1731766242296,-3018.59,9.999e-05,2]
[342351872,1731766242306,-3018.59,9.999e-05,2]
[342351873,1731766242316,-3018.59,9.999e-05,2]
[342351874,1731766242326,-3018.59,9.999e-05,2]
[342351875,1731766242335,-3018.59,9.999e-05,2]
[342351876,1731766242345,-3018.59,9.999e-05,2]
[342351877,1731766242355,-3018.59,9.999e-05,2]
[342351878,1731766242365,-3018.59,9.999e-05,2]
[342351879,1731766242376,-3018.59,9.999e-05,2]
[342351880,1731766242387,-3018.59,9.999e-05,2]
[342351881,1731766242396,-3018.59,9.999e-05,2]
[342351884,1731766242409,-3018.59,9.999e-05,2]
[342351886,1731766242418,-3018.59,9.999e-05,2]
[342351888,1731766242428,-3018.77435383,9.999e-05,2]
[342351890,1731766242437,-47052.84021615,9.999e-05,2]
[342351891,1731766242446,-158.804,9.999e-05,2]
[342351893,1731766242455,-250.0274167,0.0001,2]
[342351894,1731766242464,-4935.18186418,0.0001,2]
[342351895,1731766242474,-236660.12854715,0.0001,2]
[342351896,1731766242483,-2343799.94083387,0.0001,2]
[342351897,1731766242497,-1666.35,0.0001,2]
[342351898,1731766242508,-3630.29183471,0.0001,2]
[342351899,1731766242519,-3002.93190294,0.0001,2]
[342351900,1731766242530,-1551.91329407,0.0001,2]
[342351901,1731766242541,-36995.75753188,0.0001,2]
[342351902,1731766242552,-1850.0,0.0001,2]
[342351903,1731766242604,-802.12305201,0.0001,2]
[342351904,1731766242616,-10600.26467109,0.0001,2]
[342351905,1731766242628,-1267.32000004,0.0001,2]
[342351906,1731766242639,-1329.53252399,0.0001,2]
[342351908,1731766243178,-413.95,9.602e-05,2]
[342351909,1731766243189,-1925.0581,9.799e-05,2]
[342351910,1731766243199,-196.3365041,0.0001,2]
[342351911,1731766243211,-2025.05148645,0.0001,2]
[342351912,1731766243223,-2241.78068887,0.0001,2]
[342351913,1731766243265,-131392.20399302,0.0001,2]
[342351914,1731766243360,-1379319.6323357,0.0001,2]
[342351916,1731766243456,-3174.10440178,0.0001,2]
[342351918,1731766243467,-7364.70555058,0.0001,2]
[342351920,1731766243479,-446.1148993,0.0001,2]
[342351922,1731766243491,-5598.65967998,0.0001,2]
[342351933,1731766245472,-2253.681,0.0001,2]
[342351934,1731766245485,-6557.55996358,0.0001,2]
[342351935,1731766245496,-318.62025263,0.0001,2]
[342351936,1731766245773,-1286.07318152,0.0001,2]
[342351937,1731766245791,-310.18219091,0.0001,2]
[342351948,1731766715705,896.91,8.219e-05,2]
[342351950,1731767229154,-1757.82,8.911e-05,2]
[342351951,1731767229176,-157.84272037,8.947e-05,2]
[342351952,1731767246091,-135.47727963,8.947e-05,2]
[342351953,1731767246116,-290.87656015,8.947e-05,2]
[342351954,1731767246144,-250.0,8.956e-05,2]
[342351955,1731767246166,-2345.39830522,8.956e-05,2]
[342351956,1731767275025,203.57,0.00023,120]
[342351959,1731767353116,-1073.6695,8.812e-05,2]
[342351960,1731767353138,-250.0,8.867e-05,2]
[342351961,1731767353159,-2726.86,8.868e-05,2]
[342351962,1731767353180,-1000.0,8.868e-05,2]
[342351963,1731767353201,-226.37,8.931e-05,2]
[342351964,1731767353221,-5031.10169478,8.956e-05,2]
[342351965,1731767353241,-4888.20712131,8.963e-05,2]
[342352025,1731767431990,-827.87287869,8.963e-05,2]
[342352026,1731767432000,-206.98,9.042e-05,2]
[342352027,1731767432009,-250.0,9.06e-05,2]
[342352028,1731767432019,-456.34712131,9.103e-05,2]
[342352029,1731767432034,-2781.97287869,9.103e-05,2]
[342352030,1731767432044,-300.0,9.129e-05,2]
[342352031,1731767432053,-23900.0,9.13e-05,2]
[342352032,1731767432062,-200.0,9.13e-05,2]
[342352033,1731767432073,-162.3,9.152e-05,2]
[342352034,1731767432082,-200.0,9.6e-05,2]
[342352035,1731767432092,-150.0,9.669e-05,2]
[342352036,1731767432101,-299.99,9.67e-05,2]
[342352037,1731767432111,-150.99,9.67e-05,2]
[342352038,1731767432121,-417.25,9.67e-05,2]
[342352039,1731767432130,-150.0,9.684e-05,2]
[342352040,1731767432140,-3578.05183808,9.69e-05,2]
[342352041,1731767432149,-101494.3769,9.7e-05,2]
[342352042,1731767432159,-514.2822,9.799e-05,2]
[342352043,1731767432168,-402.4878,9.799e-05,2]
[342352044,1731767432177,-908.685,9.8e-05,2]
[342352045,1731767432186,-1743.2940095,9.8e-05,2]
[342352046,1731767432196,-500.0,9.899e-05,2]
[342352047,1731767432205,-500.0,9.899e-05,2]
[342352048,1731767432215,-500.0,9.899e-05,2]
[342352049,1731767432224,-2894.00117169,9.9e-05,2]
[342352050,1731767432233,-501.60043993,9.973e-05,2]
[342352051,1731767432243,-641.84453191,9.973e-05,2]
[342352052,1731767432252,-153.0,9.974e-05,2]
[342352053,1731767432262,-153.0,9.974e-05,2]
[342352054,1731767432271,-1000.0,9.976e-05,2]
[342352055,1731767432286,-1765.075547,9.987e-05,2]
[342352056,1731767432295,-960.3470153,9.987e-05,2]
[342352057,1731767432304,-660.6780881,9.987e-05,2]
[342352058,1731767432314,-500.0,9.991e-05,2]
[342352059,1731767432324,-754.248,9.992e-05,2]
[342352060,1731767432333,-176.954,9.992e-05,2]
[342352061,1731767432343,-1485.1862135,9.993e-05,2]
[342352062,1731767432353,-1205.29688,9.993e-05,2]
[342352063,1731767432363,-925.4075466,9.993e-05,2]
[342352064,1731767432372,-808.0640796,9.993e-05,2]
[342352065,1731767432382,-655.7811439,9.993e-05,2]
[342352066,1731767432391,-503.4982082,9.993e-05,2]
[342352067,1731767432400,-500.0,9.994e-05,2]
[342352068,1731767432409,-158.58183887,9.994e-05,2]
[342352069,1731767432419,-29982.98009821,9.997e-05,2]
[342352070,1731767432428,-500.0,9.997e-05,2]
[342352071,1731767432437,-500.0,9.998e-05,2]
[342352072,1731767432446,-500.0,9.998e-05,2]
[342352073,1731767432456,-500.0,9.998e-05,2]
[342352074,1731767432466,-500.0,9.998e-05,2]
[342352075,1731767432475,-577.88839506,9.998e-05,2]
[342352076,1731767432484,-482.18225884,9.998e-05,2]
[342352077,1731767432494,-385.8095326,9.998e-05,2]
[342352078,1731767432503,-692.32,9.998e-05,2]
[342352079,1731767432513,-500.0,9.998e-05,2]
[342352080,1731767432524,-697.04,9.998e-05,2]
[342352081,1731767432540,-722.51,9.998e-05,2]
[342352082,1731767432549,-500.0,9.998e-05,2]
[342352083,1731767432559,-500.0,9.998e-05,2]
[342352084,1731767432568,-500.0,9.998e-05,2]
[342352085,1731767432578,-500.0,9.998e-05,2]
[342352086,1731767432587,-500.0,9.998e-05,2]
[342352087,1731767432597,-2503.25,9.998e-05,2]
[342352088,1731767432607,-591.08,9.998e-05,2]
[342352089,1731767432617,-500.0,9.998e-05,2]
[342352090,1731767432627,-500.0,9.998e-05,2]
[342352091,1731767432636,-500.0,9.998e-05,2]
[342352092,1731767432645,-500.0,9.998e-05,2]
[342352093,1731767432654,-500.0,9.998e-05,2]
[342352094,1731767432663,-578.24599315,9.998e-05,2]
[342352095,1731767432673,-501.10254879,9.998e-05,2]
[342352096,1731767432683,-500.0,9.998e-05,2]
[342352097,1731767432693,-500.0,9.998e-05,2]
[342352098,1731767432703,-500.0,9.998e-05,2]
[342352099,1731767432713,-4103.92,9.998e-05,2]
[342352100,1731767432723,-500.0,9.999e-05,2]
[342352101,1731767432732,-224.13056889,9.999e-05,2]
[342352102,1731767432742,-500.0,9.999e-05,2]
[342352103,1731767432755,-500.0,9.999e-05,2]
[342352104,1731767432770,-500.0,9.999e-05,2]
[342352105,1731767432783,-500.0,9.999e-05,2]
[342352106,1731767432793,-618.38,9.999e-05,2]
[342352107,1731767432803,-500.0,9.999e-05,2]
[342352108,1731767432812,-500.0,9.999e-05,2]
[342352109,1731767432822,-500.0,9.999e-05,2]
[342352110,1731767432831,-500.0,9.999e-05,2]
[342352111,1731767432842,-500.0,9.999e-05,2]
[342352112,1731767432853,-500.0,9.999e-05,2]
[342352113,1731767432863,-500.0,9.999e-05,2]
[342352114,1731767432872,-500.0,9.999e-05,2]
[342352115,1731767432881,-500.0,9.999e-05,2]
[342352116,1731767432890,-500.0,9.999e-05,2]
[342352117,1731767432900,-500.0,9.999e-05,2]
[342352118,1731767432909,-500.0,9.999e-05,2]
[342352119,1731767432918,-500.0,9.999e-05,2]
[342352120,1731767432927,-500.0,9.999e-05,2]
[342352121,1731767432937,-500.0,9.999e-05,2]
[342352122,1731767432946,-500.0,9.999e-05,2]
[342352123,1731767432955,-500.0,9.999e-05,2]
[342352124,1731767432964,-500.0,9.999e-05,2]
[342352125,1731767432973,-500.0,9.999e-05,2]
[342352126,1731767432983,-469.43082391,9.999e-05,2]
[342352127,1731767432993,-150.01,9.999e-05,2]
[342352128,1731767433004,-5875.39524068,9.999e-05,2]
[342352129,1731767433013,-500.0,9.999e-05,2]
[342352130,1731767433024,-500.0,9.999e-05,2]
[342352131,1731767433033,-500.0,9.999e-05,2]
[342352132,1731767433043,-500.0,9.999e-05,2]
[342352133,1731767433053,-500.0,9.999e-05,2]
[342352134,1731767433062,-500.0,9.999e-05,2]
[342352135,1731767433072,-500.0,9.999e-05,2]
[342352136,1731767433081,-500.0,9.999e-05,2]
[342352137,1731767433091,-500.0,9.999e-05,2]
[342352138,1731767433100,-500.0,9.999e-05,2]
[342352139,1731767433109,-500.0,9.999e-05,2]
[342352140,1731767433118,-500.0,9.999e-05,2]
[342352141,1731767433127,-500.0,9.999e-05,2]
[342352142,1731767433136,-500.0,9.999e-05,2]
[342352143,1731767433145,-500.0,9.999e-05,2]
[342352144,1731767433154,-500.0,9.999e-05,2]
[342352145,1731767433164,-500.0,9.999e-05,2]
[342352146,1731767433173,-500.0,9.999e-05,2]
[342352147,1731767433183,-500.0,9.999e-05,2]
[342352148,1731767433192,-500.0,9.999e-05,2]
[342352149,1731767433202,-500.0,9.999e-05,2]
[342352150,1731767433211,-500.0,9.999e-05,2]
[342352151,1731767433221,-500.0,9.999e-05,2]
[342352152,1731767433230,-361.82659392,9.999e-05,2]
[342352153,1731767433240,-619.4008783,9.999e-05,2]
[342352154,1731767433249,-500.0,9.999e-05,2]
[342352155,1731767433260,-523.13594495,9.999e-05,2]
[342352156,1731767433270,-500.0,9.999e-05,2]
[342352157,1731767433284,-500.0,9.999e-05,2]
[342352158,1731767433294,-254.9,9.999e-05,2]
[342352159,1731767433303,-692.32,9.999e-05,2]
[342352160,1731767433312,-692.32,9.999e-05,2]
[342352161,1731767433321,-692.32,9.999e-05,2]
[342352162,1731767433331,-692.32,9.999e-05,2]
[342352163,1731767433340,-692.32,9.999e-05,2]
[342352164,1731767433349,-692.32,9.999e-05,2]
[342352165,1731767433359,-692.32,9.999e-05,2]
[342352166,1731767433369,-692.32,9.999e-05,2]
[342352167,1731767433379,-692.32,9.999e-05,2]
[342352168,1731767433388,-692.32,9.999e-05,2]
[342352169,1731767433398,-692.32,9.999e-05,2]
[342352170,1731767433412,-692.32,9.999e-05,2]
[342352171,1731767433423,-692.32,9.999e-05,2]
[342352172,1731767433434,-692.32,9.999e-05,2]
[342352173,1731767433446,-692.32,9.999e-05,2]
[342352174,1731767433459,-692.32,9.999e-05,2]
[342352175,1731767433470,-692.32,9.999e-05,2]
[342352176,1731767433482,-692.32,9.999e-05,2]
[342352177,1731767433494,-692.32,9.999e-05,2]
[342352178,1731767433504,-692.32,9.999e-05,2]
[342352179,1731767433515,-692.32,9.999e-05,2]
[342352180,1731767433529,-692.32,9.999e-05,2]
[342352181,1731767433540,-692.55,9.999e-05,2]
[342352182,1731767433550,-2515.49,9.999e-05,2]
[342352183,1731767433560,-2515.49,9.999e-05,2]
[342352184,1731767433570,-2515.49,9.999e-05,2]
[342352185,1731767433582,-601.87996871,9.999e-05,2]
[342352186,1731767433599,-1913.61003129,9.999e-05,2]
[342352187,1731767433611,-2515.49,9.999e-05,2]
[342352188,1731767433622,-2515.49,9.999e-05,2]
[342352189,1731767433633,-1455.57964809,9.999e-05,2]
[342352190,1731767435150,-150.13,8.93e-05,2]
[342352191,1731767435160,-500.0,9.973e-05,2]
[342352192,1731767435170,-1059.91035191,9.999e-05,2]
[342352193,1731767435180,-2515.49,9.999e-05,2]
[342352194,1731767435190,-2515.49,9.999e-05,2]
[342352195,1731767435200,-2515.49,9.999e-05,2]
[342352196,1731767435211,-2515.49,9.999e-05,2]
[342352197,1731767435222,-2515.49,9.999e-05,2]
[342352198,1731767435233,-2515.49,9.999e-05,2]
[342352199,1731767435245,-2515.49,9.999e-05,2]
[342352200,1731767435254,-2515.49,9.999e-05,2]
[342352201,1731767435264,-2515.49,9.999e-05,2]
[342352202,1731767435276,-2515.49,9.999e-05,2]
[342352203,1731767435289,-2515.49,9.999e-05,2]
[342352205,1731767435299,-2515.49,9.999e-05,2]
[342352206,1731767435309,-2515.49,9.999e-05,2]
[342352207,1731767435319,-2017.05709029,9.999e-05,2]
[342352208,1731767435333,-498.43290971,9.999e-05,2]
[342352210,1731767435343,-2515.49,9.999e-05,2]
[342352214,1731767435354,-2515.49,9.999e-05,2]
[342352216,1731767435364,-2515.71435383,9.999e-05,2]
[342352218,1731767435375,-358.04870941,9.999e-05,2]
[342352220,1731767435386,-523.35,9.999e-05,2]
[342352222,1731767435396,-697.04,9.999e-05,2]
[342352224,1731767435406,-697.04,9.999e-05,2]
[342352226,1731767435416,-697.04,9.999e-05,2]
[342352229,1731767435426,-697.04,9.999e-05,2]
[342352230,1731767435435,-697.04,9.999e-05,2]
[342352231,1731767435445,-697.04,9.999e-05,2]
[342352232,1731767435454,-697.04,9.999e-05,2]
[342352233,1731767435464,-697.04,9.999e-05,2]
[342352234,1731767435473,-697.04,9.999e-05,2]